[Event "XII Lublin Union Memorial 2020"]
[Site "Lublin"]
[Date "2020.11.05"]
[Round "2"]
[White "Szpar, Milosz"]
[Black "Teclaf, Pawel"]
[Result "0-1"]
[ECO "B41"]
[WhiteElo "2449"]
[BlackElo "2477"]
[Annotator "ChessBase"]
[PlyCount "100"]
[EventDate "2020.11.05"]
[EventType "tourn"]
[EventCountry "POL"]
[SourceTitle "playchess.com"]
[Source "ChessBase"]
[SourceQuality "1"]
[TimeControl "40/5400+30:900+30"]

1. e4 {[%emt 0:00:00]} c5 {[%emt 0:00:02]} 2. Nf3 {[%emt 0:00:00]} e6 {[%emt 0:00:04]} 3. d4 {[%emt 0:00:10]} cxd4 {[%emt 0:00:04]} 4. Nxd4 {[%emt 0:00:04]} a6 {[%emt 0:00:03]} 5. c4 {[%emt 0:00:44]} Nf6 {[%emt 0:02:15]} 6. Nc3 {[%emt 0:00:18]} Qc7 {[%emt 0:03:04]} 7. a3 {[%emt 0:00:19]} Be7 {[%emt 0:06:41]} 8. Be3 {[%emt 0:02:31]} b6 {[%emt 0:02:45]} 9. Be2 {[%emt 0:09:59]} Bb7 {[%emt 0:01:28]} 10. f3 {[%emt 0:00:36]} O-O {[%emt 0:02:48]} 11. Rc1 {[%emt 0:01:24]} d6 {[%emt 0:01:51]} 12. O-O {[%emt 0:02:10]} Nbd7 {[%emt 0:00:23]} 13. b4 {[%emt 0:03:52]} Rac8 {[%emt 0:01:06]} 14. Qd2 {[%emt 0:00:51]} Qb8 {[%emt 0:04:53]} 15. Rc2 {[%emt 0:07:23]} Rfe8 {[%emt 0:19:21]} 16. Rfc1 {[%emt 0:04:32]} Bd8 {[%emt 0:05:09]} 17. Kh1 {[%emt 0:15:12]} Bc7 {[%emt 0:05:31]} 18. Bf1 {[%emt 0:06:59]} d5 {[%emt 0:10:37]} 19. cxd5 {[%emt 0:03:14]} Bxh2 {[%emt 0:00:55]} 20. Nc6 {[%emt 0:08:06]} Bxc6 {[%emt 0:03:59]} 21. dxc6 {[%emt 0:00:07]} Rxc6 {[%emt 0:00:28]} 22. Bxa6 {[%emt 0:04:36]} Rd8 {[%emt 0:06:19]} 23. g4 {[%emt 0:06:00]} Be5 {[%emt 0:02:10]} 24. Ne2 {[%emt 0:08:59]} Nf8 {[%emt 0:11:54]} 25. Rxc6 {[%emt 0:05:43]} Rxd2 {[%emt 0:00:05]} 26. Bxd2 {[%emt 0:00:07]} Qa8 {[%emt 0:01:43]} 27. Bb5 {[%emt 0:05:10]} Qxa3 {[%emt 0:02:49]} 28. Kg2 {[%emt 0:00:07]} h6 {[%emt 0:01:06]} 29. Rc8 {[%emt 0:01:02]} g5 {[%emt 0:01:02]} 30. R1c2 {[%emt 0:02:08]} Kg7 {[%emt 0:01:09]} 31. Nc1 {[%emt 0:00:52]} Ng6 {[%emt 0:02:03]} 32. Nd3 {[%emt 0:00:56]} Qb3 {[%emt 0:01:37]} 33. Kf2 {[%emt 0:00:43]} h5 {[%emt 0:00:31]} 34. gxh5 {[%emt 0:00:34]} Bd4+ {[%emt 0:00:16]} 35. Ke2 {[%emt 0:01:18]} Nxh5 {[%emt 0:00:04]} 36. Bxg5 {[%emt 0:00:11]} Ne5 {[%emt 0:01:01]} 37. Nxe5 {[%emt 0:00:51]} Ng3+ {[%emt 0:00:38]} 38. Kd1 {[%emt 0:00:36]} Bxe5 {[%emt 0:00:25]} 39. Be2 {[%emt 0:00:19]} Qxb4 {[%emt 0:00:30]} 40. Bh4 {[%emt 0:00:00]} Qd4+ {[%emt 0:00:00]} 41. Rd2 {[%emt 0:02:29]} Qg1+ {[%emt 0:12:05]} 42. Kc2 {[%emt 0:00:07]} Bf4 {[%emt 0:00:19]} 43. Bxg3 {[%emt 0:06:47]} Qxg3 {[%emt 0:02:38]} 44. Rc3 {[%emt 0:03:08]} Qe1 {[%emt 0:01:05]} 45. Rcd3 {[%emt 0:00:40]} Qa1 {[%emt 0:00:36]} 46. Bd1 {[%emt 0:00:58]} Qa2+ {[%emt 0:00:26]} 47. Kc1 {[%emt 0:00:30]} b5 {[%emt 0:01:00]} 48. Bc2 {[%emt 0:00:09]} b4 {[%emt 0:00:20]} 49. Rb3 {[%emt 0:01:44]} Qa7 {[%emt 0:00:22]} 50. Bb1 {[%emt 0:01:15]} Qf2 {[%emt 0:00:18]} 0-1

[Event "XII Lublin Union Memorial 2020"]
[Site "Lublin"]
[Date "2020.11.08"]
[Round "5.1"]
[White "Szpar, Milosz"]
[Black "Czernek, Tymon"]
[Result "1-0"]
[ECO "B50"]
[WhiteElo "2449"]
[BlackElo "2359"]
[Annotator "ChessBase"]
[PlyCount "115"]
[EventDate "2020.11.05"]
[EventType "tourn"]
[EventCountry "POL"]
[SourceTitle "playchess.com"]
[Source "ChessBase"]
[SourceQuality "1"]
[TimeControl "40/5400+30:900+30"]

1. e4 {[%emt 0:00:00]} c5 {[%emt 0:00:00]} 2. Nf3 {[%emt 0:00:00]} d6 {[%emt 0:00:00]} 3. c3 {[%emt 0:00:00]} Nf6 {[%emt 0:00:31]} 4. h3 {[%emt 0:00:05]} g6 {[%emt 0:01:05]} 5. Bd3 {[%emt 0:00:47]} Bg7 {[%emt 0:02:13]} 6. Bc2 {[%emt 0:01:11]} O-O {[%emt 0:01:28]} 7. d4 {[%emt 0:00:44]} e6 {[%emt 0:02:46]} 8. O-O {[%emt 0:02:09]} Nc6 {[%emt 0:02:12]} 9. Re1 {[%emt 0:02:12]} b5 {[%emt 0:05:51]} 10. Nbd2 {[%emt 0:15:39]} b4 {[%emt 0:07:03]} 11. Nf1 {[%emt 0:07:30]} bxc3 {[%emt 0:11:58]} 12. bxc3 {[%emt 0:00:11]} cxd4 {[%emt 0:00:33]} 13. cxd4 {[%emt 0:00:08]} Nb4 {[%emt 0:02:40]} 14. Bb1 {[%emt 0:01:37]} Nd7 {[%emt 0:00:49]} 15. Bg5 {[%emt 0:07:08]} Qc7 {[%emt 0:02:14]} 16. Qd2 {[%emt 0:01:30]} Rb8 {[%emt 0:05:46]} 17. Ne3 {[%emt 0:09:11]} Ba6 {[%emt 0:14:08]} 18. a3 {[%emt 0:02:46]} Nc6 {[%emt 0:00:12]} 19. Ba2 {[%emt 0:00:20]} Nf6 {[%emt 0:08:57]} 20. Ng4 {[%emt 0:04:11]} Nxg4 {[%emt 0:01:06]} 21. hxg4 {[%emt 0:00:05]} Rfc8 {[%emt 0:03:11]} 22. Rac1 {[%emt 0:00:55]} Qb6 {[%emt 0:01:33]} 23. d5 {[%emt 0:01:22]} Nd8 {[%emt 0:04:00]} 24. Bxd8 {[%emt 0:01:13]} Qxd8 {[%emt 0:00:04]} 25. dxe6 {[%emt 0:02:38]} Rb2 {[%emt 0:00:44]} 26. exf7+ {[%emt 0:04:21]} Kf8 {[%emt 0:00:17]} 27. Qd5 {[%emt 0:04:44]} Qb6 {[%emt 0:00:42]} 28. Rxc8+ {[%emt 0:00:24]} Bxc8 {[%emt 0:00:02]} 29. Rf1 {[%emt 0:00:12]} Bf6 {[%emt 0:02:35]} 30. e5 {[%emt 0:08:17]} dxe5 {[%emt 0:01:14]} 31. g5 {[%emt 0:03:51]} Bb7 {[%emt 0:03:22]} 32. Nxe5 {[%emt 0:05:41]} Bxd5 {[%emt 0:01:20]} 33. Nd7+ {[%emt 0:00:15]} Ke7 {[%emt 0:01:15]} 34. f8=Q+ {[%emt 0:00:56]} Kxd7 {[%emt 0:00:04]} 35. Bxd5 {[%emt 0:05:50]} Be7 {[%emt 0:00:48]} 36. Qf7 {[%emt 0:02:06]} Rb1 {[%emt 0:02:03]} 37. Bc6+ {[%emt 0:01:38]} Kd6 {[%emt 0:02:46]} 38. Qf4+ {[%emt 0:00:56]} Kc5 {[%emt 0:02:05]} 39. Qe5+ {[%emt 0:00:18]} Kxc6 {[%emt 0:00:07]} 40. Qe4+ {[%emt 0:00:00]} Kd7 {[%emt 0:00:00]} 41. Rxb1 {[%emt 0:00:11]} Qc5 {[%emt 0:00:48]} 42. Rb7+ {[%emt 0:02:47]} Ke8 {[%emt 0:00:15]} 43. Qa4+ {[%emt 0:00:57]} Kf8 {[%emt 0:00:06]} 44. Qf4+ {[%emt 0:04:19]} Kg8 {[%emt 0:00:21]} 45. Qb8+ {[%emt 0:01:05]} Bf8 {[%emt 0:00:42]} 46. Qc7 {[%emt 0:01:19]} Qxc7 {[%emt 0:00:36]} 47. Rxc7 {[%emt 0:00:05]} Bxa3 {[%emt 0:00:35]} 48. Rxa7 {[%emt 0:00:03]} Bc1 {[%emt 0:00:05]} 49. Ra5 {[%emt 0:00:04]} Kf7 {[%emt 0:00:09]} 50. g3 {[%emt 0:00:14]} h6 {[%emt 0:00:31]} 51. gxh6 {[%emt 0:00:28]} Bxh6 {[%emt 0:00:06]} 52. Ra6 {[%emt 0:00:06]} Bg7 {[%emt 0:00:32]} 53. Kg2 {[%emt 0:00:30]} Bf6 {[%emt 0:00:07]} 54. f4 {[%emt 0:00:14]} g5 {[%emt 0:00:38]} 55. f5 {[%emt 0:01:26]} Be7 {[%emt 0:00:16]} 56. Kf3 {[%emt 0:00:18]} Bf6 {[%emt 0:00:31]} 57. Rxf6+ {[%emt 0:00:10]} Kxf6 {[%emt 0:00:03]} 58. Kg4 {[%emt 0:00:04]} 1-0

[Event "XII Lublin Union Memorial 2020"]
[Site "Lublin"]
[Date "2020.11.08"]
[Round "5.2"]
[White "Sliwicka, Alicja"]
[Black "Pacan-Milej, Kosma"]
[Result "0-1"]
[ECO "B32"]
[WhiteElo "2311"]
[BlackElo "2423"]
[Annotator "ChessBase"]
[PlyCount "112"]
[EventDate "2020.11.05"]
[EventType "tourn"]
[EventCountry "POL"]
[SourceTitle "playchess.com"]
[Source "ChessBase"]
[SourceQuality "1"]
[TimeControl "40/5400+30:900+30"]

1. e4 {[%emt 0:00:00]} c5 {[%emt 0:00:00]} 2. Nf3 {[%emt 0:00:00]} Nc6 {[%emt 0:00:00]} 3. d4 {[%emt 0:00:03]} cxd4 {[%emt 0:00:00]} 4. Nxd4 {[%emt 0:00:08]} e5 {[%emt 0:00:03]} 5. Nb5 {[%emt 0:00:33]} d6 {[%emt 0:00:10]} 6. c4 {[%emt 0:04:00]} Be6 {[%emt 0:00:14]} 7. N1c3 {[%emt 0:01:56]} a6 {[%emt 0:00:35]} 8. Na3 {[%emt 0:00:15]} g6 {[%emt 0:00:40]} 9. Be2 {[%emt 0:10:35]} Bg7 {[%emt 0:00:40]} 10. Be3 {[%emt 0:06:07]} Nf6 {[%emt 0:02:58]} 11. Qd2 {[%emt 0:02:03]} O-O {[%emt 0:01:57]} 12. Nc2 {[%emt 0:02:23]} Rc8 {[%emt 0:10:05]} 13. f3 {[%emt 0:05:35]} Nh5 {[%emt 0:22:02]} 14. O-O {[%emt 0:05:41]} Nf4 {[%emt 0:02:37]} 15. Nd5 {[%emt 0:03:54]} Nxe2+ {[%emt 0:03:56]} 16. Qxe2 {[%emt 0:00:10]} b5 {[%emt 0:14:42]} 17. Bb6 {[%emt 0:12:11]} Qd7 {[%emt 0:08:24]} 18. cxb5 {[%emt 0:00:45]} Bxd5 {[%emt 0:02:02]} 19. exd5 {[%emt 0:01:12]} Ne7 {[%emt 0:01:38]} 20. bxa6 {[%emt 0:08:23]} Nxd5 {[%emt 0:01:37]} 21. Bf2 {[%emt 0:02:30]} Nf4 {[%emt 0:02:40]} 22. Qd2 {[%emt 0:01:34]} d5 {[%emt 0:05:13]} 23. b4 {[%emt 0:04:48]} Qb5 {[%emt 0:02:29]} 24. Nd4 {[%emt 0:19:03]} Qxa6 {[%emt 0:08:05]} 25. b5 {[%emt 0:00:29]} Qf6 {[%emt 0:01:39]} 26. Ne2 {[%emt 0:00:28]} Nxe2+ {[%emt 0:02:50]} 27. Qxe2 {[%emt 0:00:04]} e4 {[%emt 0:00:51]} 28. Rab1 {[%emt 0:01:31]} Rfe8 {[%emt 0:01:57]} 29. fxe4 {[%emt 0:00:40]} dxe4 {[%emt 0:00:07]} 30. b6 {[%emt 0:00:43]} Qc6 {[%emt 0:00:50]} 31. Be3 {[%emt 0:01:53]} Be5 {[%emt 0:01:29]} 32. Rfd1 {[%emt 0:04:37]} Rb8 {[%emt 0:02:12]} 33. Qb5 {[%emt 0:00:12]} Qf6 {[%emt 0:00:31]} 34. Qe2 {[%emt 0:00:38]} Bf4 {[%emt 0:01:14]} 35. Bxf4 {[%emt 0:00:21]} Qxf4 {[%emt 0:00:04]} 36. a4 {[%emt 0:00:31]} Re5 {[%emt 0:00:52]} 37. Rb4 {[%emt 0:01:02]} Qf6 {[%emt 0:00:22]} 38. Qe3 {[%emt 0:00:20]} Rf5 {[%emt 0:00:40]} 39. Rdb1 {[%emt 0:00:51]} Qc6 {[%emt 0:00:32]} 40. Rxe4 {[%emt 0:00:00]} Rc5 {[%emt 0:00:00]} 41. Reb4 {[%emt 0:04:09]} Rc2 {[%emt 0:01:33]} 42. Rg4 {[%emt 0:07:19]} Re8 {[%emt 0:00:56]} 43. Qd4 {[%emt 0:03:22]} Ree2 {[%emt 0:03:43]} 44. Kf1 {[%emt 0:00:51]} Rf2+ {[%emt 0:02:13]} 45. Qxf2 {[%emt 0:01:16]} Rxf2+ {[%emt 0:00:05]} 46. Kg1 {[%emt 0:00:23]} Rc2 {[%emt 0:00:27]} 47. Rb5 {[%emt 0:00:55]} Rc1+ {[%emt 0:00:30]} 48. Kf2 {[%emt 0:00:02]} Qf6+ {[%emt 0:00:37]} 49. Ke3 {[%emt 0:00:51]} Qe6+ {[%emt 0:00:11]} 50. Kd2 {[%emt 0:00:28]} Qe1+ {[%emt 0:00:08]} 51. Kd3 {[%emt 0:00:03]} Rc3+ {[%emt 0:00:23]} 52. Kd4 {[%emt 0:00:09]} Qe3+ {[%emt 0:00:54]} 53. Kd5 {[%emt 0:00:03]} Qe6+ {[%emt 0:00:08]} 54. Kd4 {[%emt 0:00:02]} Rc4+ {[%emt 0:00:09]} 55. Kd3 {[%emt 0:00:05]} Qxg4 {[%emt 0:00:09]} 56. b7 {[%emt 0:00:05]} Qe4+ {[%emt 0:00:06]} 0-1

[Event "XII Lublin Union Memorial 2020"]
[Site "Lublin"]
[Date "2020.11.08"]
[Round "5.3"]
[White "Dziuba, Marcin"]
[Black "Nasuta, Grzegorz"]
[Result "1/2-1/2"]
[ECO "D45"]
[WhiteElo "2596"]
[BlackElo "2535"]
[Annotator "ChessBase"]
[PlyCount "160"]
[EventDate "2020.11.05"]
[EventType "tourn"]
[EventCountry "POL"]
[SourceTitle "playchess.com"]
[Source "ChessBase"]
[SourceQuality "1"]
[TimeControl "40/5400+30:900+30"]

1. d4 {[%emt 0:00:00]} d5 {[%emt 0:00:00]} 2. c4 {[%emt 0:00:00]} c6 {[%emt 0:00:00]} 3. Nc3 {[%emt 0:00:02]} Nf6 {[%emt 0:00:00]} 4. e3 {[%emt 0:00:05]} e6 {[%emt 0:00:00]} 5. Nf3 {[%emt 0:00:23]} Nbd7 {[%emt 0:00:09]} 6. Qc2 {[%emt 0:00:17]} Bd6 {[%emt 0:00:11]} 7. Bd3 {[%emt 0:00:15]} O-O {[%emt 0:00:08]} 8. O-O {[%emt 0:00:17]} dxc4 {[%emt 0:00:05]} 9. Bxc4 {[%emt 0:00:05]} b5 {[%emt 0:00:06]} 10. Be2 {[%emt 0:00:19]} Bb7 {[%emt 0:00:33]} 11. e4 {[%emt 0:01:17]} e5 {[%emt 0:00:07]} 12. dxe5 {[%emt 0:00:06]} Nxe5 {[%emt 0:00:07]} 13. Nd4 {[%emt 0:00:45]} Neg4 {[%emt 0:02:03]} 14. g3 {[%emt 0:00:40]} Bc5 {[%emt 0:00:07]} 15. Nf5 {[%emt 0:00:25]} Re8 {[%emt 0:00:15]} 16. Bf4 {[%emt 0:01:04]} Nxf2 {[%emt 0:03:43]} 17. Rxf2 {[%emt 0:02:03]} Bxf2+ {[%emt 0:00:14]} 18. Kxf2 {[%emt 0:00:05]} b4 {[%emt 0:00:07]} 19. e5 {[%emt 0:03:04]} bxc3 {[%emt 0:00:33]} 20. exf6 {[%emt 0:00:31]} Qxf6 {[%emt 0:01:06]} 21. g4 {[%emt 0:02:14]} cxb2 {[%emt 0:00:26]} 22. Rb1 {[%emt 0:02:20]} Bc8 {[%emt 0:01:54]} 23. Qxb2 {[%emt 0:02:01]} Bxf5 {[%emt 0:00:07]} 24. Qxf6 {[%emt 0:00:22]} Rxe2+ {[%emt 0:00:07]} 25. Kxe2 {[%emt 0:00:04]} Bxg4+ {[%emt 0:00:07]} 26. Kf2 {[%emt 0:00:13]} gxf6 {[%emt 0:00:06]} 27. Rg1 {[%emt 0:00:04]} h5 {[%emt 0:00:06]} 28. h3 {[%emt 0:00:04]} f5 {[%emt 0:00:04]} 29. hxg4 {[%emt 0:00:06]} fxg4 {[%emt 0:00:05]} 30. Rh1 {[%emt 0:06:56]} Rd8 {[%emt 0:00:36]} 31. Rxh5 {[%emt 0:02:11]} Rd3 {[%emt 0:00:16]} 32. Rg5+ {[%emt 0:04:03]} Kh7 {[%emt 0:00:07]} 33. Rxg4 {[%emt 0:04:19]} Ra3 {[%emt 0:00:31]} 34. Be5 {[%emt 0:00:37]} Rxa2+ {[%emt 0:09:44]} 35. Kg3 {[%emt 0:01:02]} Ra5 {[%emt 0:00:33]} 36. Bf6 {[%emt 0:05:00]} Rf5 {[%emt 0:01:01]} 37. Bd4 {[%emt 0:00:24]} f6 {[%emt 0:11:58]} 38. Kh4 {[%emt 0:05:26]} a5 {[%emt 0:03:50]} 39. Bc3 {[%emt 0:00:48]} a4 {[%emt 0:03:44]} 40. Rxa4 {[%emt 0:00:00]} Kg6 {[%emt 0:00:00]} 41. Rc4 {[%emt 0:01:50]} c5 {[%emt 0:06:52]} 42. Bd2 {[%emt 0:03:35]} Rh5+ {[%emt 0:03:24]} 43. Kg4 {[%emt 0:03:20]} Rd5 {[%emt 0:06:32]} 44. Be3 {[%emt 0:00:17]} Re5 {[%emt 0:00:11]} 45. Kf3 {[%emt 0:01:03]} Rf5+ {[%emt 0:01:35]} 46. Kg3 {[%emt 0:00:41]} Re5 {[%emt 0:00:48]} 47. Bxc5 {[%emt 0:01:01]} Rg5+ {[%emt 0:00:06]} 48. Kf3 {[%emt 0:00:31]} Rf5+ {[%emt 0:00:05]} 49. Ke2 {[%emt 0:00:53]} Re5+ {[%emt 0:00:09]} 50. Be3 {[%emt 0:00:13]} Ra5 {[%emt 0:01:56]} 51. Rc6 {[%emt 0:08:26]} Rd5 {[%emt 0:01:16]} 52. Bd2 {[%emt 0:02:47]} Re5+ {[%emt 0:01:10]} 53. Kd3 {[%emt 0:00:17]} Rd5+ {[%emt 0:01:18]} 54. Kc2 {[%emt 0:00:30]} Rf5 {[%emt 0:00:21]} 55. Bc3 {[%emt 0:00:18]} Rf3 {[%emt 0:00:10]} 56. Kd2 {[%emt 0:00:26]} Kf7 {[%emt 0:00:38]} 57. Ke2 {[%emt 0:00:20]} Rf4 {[%emt 0:00:32]} 58. Ke3 {[%emt 0:00:36]} Rf1 {[%emt 0:00:16]} 59. Ke4 {[%emt 0:00:05]} Rf2 {[%emt 0:06:02]} 60. Bd4 {[%emt 0:02:26]} Rf1 {[%emt 0:00:20]} 61. Kd5 {[%emt 0:00:05]} Rd1 {[%emt 0:08:45]} 62. Rxf6+ {[%emt 0:01:56]} Ke7 {[%emt 0:00:13]} 63. Rf2 {[%emt 0:01:58]} Kd7 {[%emt 0:00:08]} 64. Rf7+ {[%emt 0:01:05]} Kd8 {[%emt 0:00:06]} 65. Rh7 {[%emt 0:03:04]} Rd2 {[%emt 0:00:06]} 66. Ke5 {[%emt 0:02:19]} Kc8 {[%emt 0:00:05]} 67. Bc5 {[%emt 0:02:42]} Rd7 {[%emt 0:00:09]} 68. Rh2 {[%emt 0:04:11]} Kc7 {[%emt 0:05:57]} 69. Bb4 {[%emt 0:01:45]} Rd1 {[%emt 0:02:58]} 70. Rc2+ {[%emt 0:04:55]} Kd7 {[%emt 0:00:59]} 71. Ba5 {[%emt 0:01:20]} Ra1 {[%emt 0:12:38]} 72. Rc7+ {[%emt 0:01:09]} Kd8 {[%emt 0:00:10]} 73. Ra7+ {[%emt 0:05:11]} Kc8 {[%emt 0:00:21]} 74. Kd6 {[%emt 0:00:23]} Kb8 {[%emt 0:01:00]} 75. Ra6 {[%emt 0:00:52]} Kb7 {[%emt 0:00:08]} 76. Rb6+ {[%emt 0:02:05]} Ka7 {[%emt 0:00:06]} 77. Rb5 {[%emt 0:00:34]} Ka6 {[%emt 0:00:05]} 78. Rb8 {[%emt 0:00:29]} Rxa5 {[%emt 0:01:33]} 79. Kc6 {[%emt 0:00:17]} Ka7 {[%emt 0:00:05]} 80. Rb7+ {[%emt 0:00:04]} Ka8 {[%emt 0:00:13]} 1/2-1/2

[Event "XII Lublin Union Memorial 2020"]
[Site "Lublin"]
[Date "2020.11.08"]
[Round "5.4"]
[White "Teclaf, Pawel"]
[Black "Ovsejevitsch, Sergei"]
[Result "1/2-1/2"]
[ECO "C67"]
[WhiteElo "2477"]
[BlackElo "2587"]
[Annotator "ChessBase"]
[PlyCount "60"]
[EventDate "2020.11.05"]
[EventType "tourn"]
[EventCountry "POL"]
[SourceTitle "playchess.com"]
[Source "ChessBase"]
[SourceQuality "1"]
[TimeControl "40/5400+30:900+30"]

1. e4 {[%emt 0:00:00]} e5 {[%emt 0:00:00]} 2. Nf3 {[%emt 0:00:00]} Nc6 {[%emt 0:00:00]} 3. Bb5 {[%emt 0:00:00]} Nf6 {[%emt 0:00:45]} 4. O-O {[%emt 0:02:43]} Nxe4 {[%emt 0:00:29]} 5. Re1 {[%emt 0:06:09]} Nd6 {[%emt 0:00:43]} 6. Nxe5 {[%emt 0:00:30]} Be7 {[%emt 0:00:45]} 7. Bf1 {[%emt 0:00:23]} O-O {[%emt 0:01:43]} 8. d4 {[%emt 0:01:49]} Nf5 {[%emt 0:11:44]} 9. Nxc6 {[%emt 0:11:10]} dxc6 {[%emt 0:00:56]} 10. c3 {[%emt 0:01:25]} c5 {[%emt 0:07:26]} 11. dxc5 {[%emt 0:04:05]} Qxd1 {[%emt 0:01:39]} 12. Rxd1 {[%emt 0:00:04]} Bxc5 {[%emt 0:00:10]} 13. Nd2 {[%emt 0:04:57]} Re8 {[%emt 0:02:46]} 14. Nf3 {[%emt 0:15:38]} h6 {[%emt 0:07:59]} 15. Bf4 {[%emt 0:02:55]} Bb6 {[%emt 0:05:17]} 16. h3 {[%emt 0:03:46]} Be6 {[%emt 0:03:46]} 17. g4 {[%emt 0:02:03]} Ne7 {[%emt 0:01:04]} 18. Nd4 {[%emt 0:00:12]} Bd5 {[%emt 0:13:06]} 19. Nb5 {[%emt 0:07:11]} Bf3 {[%emt 0:07:23]} 20. Rd3 {[%emt 0:07:07]} Be4 {[%emt 0:01:12]} 21. Rd2 {[%emt 0:00:03]} Ng6 {[%emt 0:08:11]} 22. Bxc7 {[%emt 0:04:15]} Nh4 {[%emt 0:00:21]} 23. Be2 {[%emt 0:00:40]} Bf3 {[%emt 0:07:12]} 24. Bxb6 {[%emt 0:04:25]} Bxe2 {[%emt 0:00:16]} 25. Nd4 {[%emt 0:00:07]} Bxg4 {[%emt 0:01:02]} 26. hxg4 {[%emt 0:00:39]} axb6 {[%emt 0:00:04]} 27. f3 {[%emt 0:00:32]} Ng6 {[%emt 0:04:00]} 28. Kf2 {[%emt 0:02:37]} Re5 {[%emt 0:02:49]} 29. Nf5 {[%emt 0:04:26]} h5 {[%emt 0:01:52]} 30. Kg3 {[%emt 0:04:53]} hxg4 {[%emt 0:01:27]} 1/2-1/2